Cogmind - Beta 10.1 *** ADVENTURER MODE // 2020.10.19 @ 23:41:37 Player: icehewn Result: Self-destructed Performance ------------- Evolutions (1) 500 Regions Visited (2) 400 Robots Destroyed (25) 125 Value Destroyed (395) 395 Prototype IDs (0) 0 Alien Tech Used (0) 0 Bonus (0) 0 TOTAL SCORE: 1420 Bonus ------- None Cogmind --------- Core Integrity 373/400 Matter 289/300 Energy 125/125 System Corruption 0% Temperature Cool (0) Movement Flying (120) Ox1 Location -9/Materials Parts ------- > --- POWER (1) -------- Light Ion Engine > --- PROPULSION (4) --- VTOL Module > --- UTILITY (2) ------ Visual Processing Unit Sensor Array > --- WEAPON (2) ------- Light Assault Rifle Grenade Launcher > --- INVENTORY (4) ---- Ion Engine Assault Rifle Light Assault Rifle Peak State ------------ > --- POWER ------------ Ion Engine > --- PROPULSION ------- VTOL Module VTOL Module > --- UTILITY ---------- Improved Terrain Scanner Tractor Beam > --- WEAPON ----------- Beam Rifle Light Assault Rifle > --- INVENTORY -------- Small Matter Pod EM Pulse Gun Light Assault Rifle Mining Laser [Rating: 11] Favorites ----------- Power Ion Engine Engine Ion Engine Propulsion VTOL Module Wheel Wheel Flight Unit VTOL Module Utility Sensor Array Device Sensor Array Storage Small Storage Unit Processor Visual Processing Unit Weapon Light Assault Rifle Energy Gun Small Laser Ballistic Gun Light Assault Rifle Launcher Grenade Launcher Special Melee Weapon Datajack Build | -11 -10 -9 ------- Run | Scr Mat Mat Slots Evolved 2 | . . 2 Power . | . . . Propulsion 2 | . . 2 Utility . | . . . Weapon . | . . . Parts Attached 32 | 9 23 . Power 5 | 1 4 . Engine 5 | 1 4 . Core . | . . . Reactor . | . . . Propulsion 9 | 4 5 . Treads . | . . . Leg . | . . . Wheel 4 | 4 . . Hover . | . . . Flight 5 | . 5 . Utility 9 | 2 7 . Device 7 | 1 6 . Storage 1 | 1 . . Processor 1 | . 1 . Hackware . | . . . Protection . | . . . Artifact . | . . . Weapon 9 | 2 7 . Energy Gun 3 | . 3 . Energy Cannon . | . . . Ballistic Gun 3 | 2 1 . Ballistic Cannon . | . . . Launcher 2 | . 2 . Special Weapon . | . . . Impact Weapon . | . . . Slashing Weapon . | . . . Piercing Weapon . | . . . Special Melee Weapon 1 | . 1 . Unidentified Prototypes . | . . . Parts Lost 6 | . 5 1 Power . | . . . Propulsion 2 | . 1 1 Utility 2 | . 2 . Weapon 2 | . 2 . Highest Loss Streak 2 | . 2 1 Average Slot Usage (%) 91 | . 92 77 Engine 13 | . 14 11 Wheel 2 | . 2 . Flight 24 | . 25 22 Device 19 | . 19 11 Storage 1 | . 1 . Processor 4 | . 3 11 Energy Gun 4 | . 4 . Ballistic Gun 16 | . 17 11 Launcher 1 | . 1 11 Special Melee Weapon 1 | . 1 . Naked Turns . | . . . Heaviest Build 12 | 12 12 8 Greatest Support 32 | 32 20 10 Greatest Overweight (x) 1 | . 1 . Average Overweight (x) . | . . . Largest Inventory Capacity 6 | 6 6 4 Average Capacity 4 | 5 4 4 Most Carried 6 | 6 6 3 Average Carried 3 | 4 3 3 Final Capacity 6 | 6 4 4 Final Carried 6 | 6 3 3 Class Distribution -------------------- 73% | Mutant 26% | Scavenger-Mutant Dominant Class ---------------- Mutant | -10/Materials Scavenger-Mutant | -9/Materials Resources | -11 -10 -9 ----------- Run | Scr Mat Mat Matter Collected 648 | 328 320 . Remotely 192 | . 192 . Salvage Created 599 | 209 390 . Parts 52 | 14 38 . Haulers Intercepted . | . . . Recyclers Shooed . | . . . Parts Field Recycled . | . . . Retrieved Matter . | . . . Parts Self-Destructed . | . . . Prevented . | . . . Kills | -11 -10 -9 ------- Run | Scr Mat Mat Combat Hostiles Destroyed 14 | . 14 . Guns 13 | . 13 . AOE 1 | . 1 . Classes Destroyed 6 | 3 3 . Worker 3 | 2 1 . Tunneler 4 | 4 . . Recycler 1 | 1 . . Watcher 3 | . 3 . Swarmer 8 | . 8 . Grunt 6 | . 6 . Best Kill Streak 6 | 5 6 . Combat Bots Only 5 | . 5 . Max Kills in Single Turn 2 | 1 2 . Gunslinging 1 | . 1 . Exploded 1 | . 1 . Melee . | . . . Uniques/NPCs Destroyed . | . . . Combat | -11 -10 -9 -------- Run | Scr Mat Mat Damage Taken 613 | . 510 103 Core 149 | . 122 27 Absorbed by Shields . | . . . Core Remaining (%) 75 | 100 51 . Volleys Fired 79 | 19 54 6 Largest 2 | 2 2 2 Hottest 76 | 40 76 50 Shots Fired 128 | 38 83 7 Gun 126 | 38 82 6 Cannon . | . . . Launcher 2 | . 1 1 Special . | . . . Kinetic 113 | 38 69 6 Thermal 13 | . 13 . Explosive 2 | . 1 1 Electromagnetic . | . . . Robot Hit Streak 13 | 7 13 5 Robot Miss Streak 3 | 3 3 1 Penetration Max . | . . . Secondary Targets 3 | . 3 . Max Gunslinging Chain 1 | . 1 . Shots Hit Robots 98 | 25 69 4 Core Hits 41 | 13 26 2 Critical Hits . | . . . Critical Kills . | . . . Critical Parts Destroyed . | . . . Melee Attacks 5 | . 5 . Impact . | . . . Slashing . | . . . Piercing . | . . . Sneak Attacks 4 | . 4 . Combat Hostiles . | . . . Follow-up Attacks . | . . . Damage Inflicted 818 | 188 589 41 Guns 773 | 188 556 29 Cannons . | . . . Explosions 45 | . 33 12 Melee . | . . . Ramming . | . . . Kinetic 623 | 188 406 29 Thermal 150 | . 150 . Explosive 45 | . 33 12 Electromagnetic . | . . . Impact . | . . . Slashing . | . . . Piercing . | . . . Highest Corruption . | . . . Average Corruption . | . . . Corruption Purged . | . . . Overload Shots . | . . . Overflow Damage . | . . . Projectiles . | . . . Explosions . | . . . Melee . | . . . Knockbacks . | . . . Impact . | . . . Kinetic . | . . . Secondary . | . . . Self-Inflicted Damage . | . . . Shots . | . . . Rammed . | . . . Targets Rammed . | . . . Kicked . | . . . Crushed . | . . . Highest Temperature 106 | . 106 8 Average Temperature 29 | . 29 6 Received Heat Transfer 291 | . 264 27 Siege Activations . | . . . Robots Corrupted . | . . . Combat Hostiles . | . . . Parts Fried . | . . . Impact Corruptions . | . . . Robots Melted . | . . . Combat Hostiles . | . . . Parts Melted . | . . . Heat Transferred 371 | . 371 . Parts Sabotaged . | . . . Parts Stolen . | . . . Parts Stripped . | . . . Power Chain Reactions . | . . . Missiles Intercepted . | . . . Alert | -11 -10 -9 ------- Run | Scr Mat Mat Peak Influence 294 | 35 294 138 Initial 105 | . 19 105 Average 140 | 17 173 115 Maximum Alert Level 1 | . 1 . Low Security (%) 62 | 100 51 100 Level 1 37 | . 48 . Level 2 . | . . . Level 3 . | . . . Level 4 . | . . . Level 5 . | . . . High Security . | . . . Max Security . | . . . Squads Dispatched 1 | . 1 . Investigation 1 | . 1 . Extermination . | . . . Reinforcement . | . . . Assault . | . . . Garrison . | . . . Intercept . | . . . Construction Impeded . | . . . Haulers Reinforced . | . . . Stealth | -11 -10 -9 --------- Run | Scr Mat Mat Distress Signals . | . . . Communications Jammed . | . . . Distress Signals . | . . . Times Spotted 24 | . 23 1 Peak Tracking Total 5 | . 5 1 Tactical Retreats 4 | . 4 . Traps | -11 -10 -9 ------- Run | Scr Mat Mat Traps Triggered 2 | . 1 1 Indirectly . | . . . Trap Hack Attempts . | . . . Triggered . | . . . Disarmed . | . . . Reprogrammed . | . . . Reused . | . . . Traps Extracted . | . . . Installed . | . . . Triggered . | . . . Machines | -11 -10 -9 ---------- Run | Scr Mat Mat Machines Disabled . | . . . Max in Single Turn . | . . . Machines Sabotaged . | . . . Garrisons Compromised . | . . . Overloaded Fab Kills . | . . . Fab Network Shutdowns . | . . . Hacking | -11 -10 -9 --------- Run | Scr Mat Mat Machines Accessed 9 | . 8 1 Terminals 8 | . 7 1 Fabricators . | . . . Repair Stations . | . . . Recycling Units 1 | . 1 . Scanalyzers . | . . . Garrison Access . | . . . Total Hacks 14 | . 12 2 Successful 13 | . 11 2 Failed 1 | . 1 . Catastrophic . | . . . Database Lockouts . | . . . Manual . | . . . Terminals 12 | . 10 2 Fabricators . | . . . Repair Stations . | . . . Recycling Units 2 | . 2 . Scanalyzers . | . . . Garrison Access . | . . . Terminal Hacks 11 | . 9 2 Locate Traps 2 | . 1 1 Dispatch Records 1 | . 1 . Investigation Status 1 | . 1 . Recall Assault 1 | . 1 . Hauler Manifests 2 | . 2 . Zone Layout 4 | . 3 1 Fabricator Hacks . | . . . Repair Station Hacks . | . . . Recycling Unit Hacks 2 | . 2 . Retrieve Matter 1 | . 1 . Retrieve Components 1 | . 1 . Scanalyzer . | . . . Garrison Access Hacks . | . . . Unauthorized Hacks . | . . . Terminals . | . . . Fabricators . | . . . Repair Stations . | . . . Recycling Units . | . . . Scanalyzers . | . . . Garrison Access . | . . . Data Cores Recovered . | . . . Used . | . . . Hacking Detections 1 | . 1 . Full Trace Events . | . . . Feedback Events . | . . . Feedback Blocked . | . . . Robot Schematics Acquired . | . . . Robots Built . | . . . Matter . | . . . Time . | . . . Total Robot Build Rating . | . . . Part Schematics Acquired . | . . . Parts Built . | . . . Matter . | . . . Time . | . . . Total Part Build Rating . | . . . Parts Repaired . | . . . Time . | . . . Parts Recycled . | . . . Recycled Matter . | . . . Retrieved Matter . | . . . Retrieved Components 1 | . 1 . Parts Scanalyzed . | . . . Part Schematics Acquired . | . . . Parts Damaged . | . . . Bothacking | -11 -10 -9 ------------ Run | Scr Mat Mat Used RIF Installer . | . . . Robots Hacked 4 | . 4 . Non-combat 3 | . 3 . Combat 1 | . 1 . Robot Hacks Applied 4 | . 4 . parse_system 2 | . 2 . no_distress 2 | . 2 . Relay Couplers Released . | . . . Robots Rewired . | . . . Allies Hacked . | . . . Hacks Repelled . | . . . Allies | -11 -10 -9 -------- Run | Scr Mat Mat Total Allies . | . . . Largest Group . | . . . Highest-Rated Group . | . . . Highest-Rated Ally . | . . . Total Orders . | . . . Ally Attacks . | . . . Total Damage . | . . . Kills . | . . . Allies Corrupted . | . . . Allies Melted . | . . . Intel | -11 -10 -9 ------- Run | Scr Mat Mat Robot Analysis Total . | . . . Derelict Logs Recovered . | . . . Drone Launches . | . . . Drone Recoveries . | . . . Exploration | -11 -10 -9 ------------- Run | Scr Mat Mat Turns Passed 866 | 162 658 46 Spaces Moved 1325 | 103 1132 90 Core 1 | 1 . . Treads . | . . . Legs . | . . . Wheels 180 | 102 78 . Hover . | . . . Flight 1144 | . 1054 90 Fastest Speed 37 | 50 37 37 Average Speed 43 | 88 40 37 Slowest Speed 120 | 100 120 37 Overloaded Moves . | . . . Propulsion Burnouts . | . . . Robots Hopped 6 | . 6 . Cave-ins Triggered . | . . . Exploration Rate (%) 37 | 4 96 11 Regions Visited 2 Branch Regions . Pre-discovered Areas . | . . . Known Exits Taken . | . . . Unknown Exits Taken 2 | 1 1 . Scrap Searched . | . . . Spaces Dug . | . . . Terrain Destroyed 12 | . 7 5 Melee . | . . . Projectile . | . . . AOE 12 | . 7 5 Terrain Rammed . | . . . Walls Destroyed . | . . . Machines Disabled . | . . . Actions | -11 -10 -9 --------- Run | Scr Mat Mat Total 1496 | 140 1260 96 Wait 13 | . 13 . Move 1311 | 102 1119 90 Hop 6 | . 6 . Pick Up 19 | 7 12 . Fast Attach 16 | 7 9 . Attach 2 | . 2 . Detach 3 | . 3 . Swap 14 | 2 12 . Drop 28 | 3 25 . Fire 79 | 19 54 6 Melee 5 | . 5 . Ram . | . . . Kick . | . . . Crush . | . . . Escape Stasis . | . . . Rewire . | . . . Trap . | . . . Miscellaneous . | . . . Route ------- -11/Scrapyard -10/Materials (discovered 5 exits: *Mat x3 / [*Min x2]) -9/Materials History --------- Turn | Location | Event 39 | -11/Scrapyard | Discovered new exit (range 15) 163 | -11/Scrapyard | Entered Materials 224 | -10/Materials | Discovered new exit (range 14) 311 | -10/Materials | Build established: Mutant 391 | -10/Materials | Discovered new exit (range 9) 431 | -10/Materials | Discovered new exit (range 7) 459 | -10/Materials | Discovered new exit (range 12) 584 | -10/Materials | Discovered new exit (range 16) 821 | -10/Materials | Entered another Materials area 821 | -9/Materials | Evolved 2 slots: Propulsion x2 867 | -9/Materials | Self-destructed Last Messages --------------- 00796_ U-05 Engineer builds a Wall. 00802_ U-05 Engineer lays Concrete. 00803_ U-05 Engineer builds a Wall. 00814_ Acquired Assault Rifle. PARAMETERS=PROPULSION_2 LOCATION=UNKNOWN GOAL=ESCAPE 00831_ Connecting with Scanalyzer... 00831_ Current location identified: Materials 00848_ Connecting with Terminal... >>Layout(Zone) Retrieving Zone 2J layout... Downloaded map data. >>Traps(Locate) Found 6 traps in 1 array: 6x Explosive Trap Map updated. 00854_ Triggered Explosive Trap. 00854_ An explosion rips through the floor. 00866_ VTOL Module destroyed. Map ----- +----------------------------------------------------+ | | | | | | | | | | | | | | | | | | | | | | | | | | | ###########?????????##############???????????????? | | #?????????# || #???????????????? | | #?????????# || """ #???????????????? | | #?????????# """ #???????????????? | | #?????????# """ #???????????????? | | #???####### #???????????????? | | ####+########## #####+###############????????? | | # ^ # #????????? | | # """ """ ""#????????? | | # """ """ T"#????????? | | ###########+### #### #? """ """ ""#????????? | | ???????# ## ##??# # #????????? | | ???????# ## #???##@########+######????????? | | ???????# ## #???## ###??# ##########??? | | ???????# ## #??? ?#### # #??? | | ???????# ## #??? [ + ?? ? + #??? | | ???????# ## #??? #### # #??? | | ???????## ""#### #??? #??# # #??? | | ????????#S""#??# #?? [ #??## ## #??? | | ????????#"" #??# #?? #???# ## #??? | | ????????#####??# #? ][ #???# ## #??? | | ???????????????# +? [[ #???# ## #??? | | ???????????????# # [[ #???# ## #??? | | ???????????????# ## Y# ##???# ######+####??? | | ???????????????# ### #####????# #### ##### | | ???????????????? ??##?????????# ????????????? | | ???????????????? ?????????????? ????????????? | | ????????????????????????????????? ????????????? | | ????????????????????????????????? ###????????????? | | ?????????????????????????????????????????????????? | | ?????????????????????????????????????????????????? | | ?????????????????????????????????????????????????? | | ?????????????????????????????????????????????????? | | ?????????????????????????????????????????????????? | | ?????????????????????????????????????????????????? | | ?????????????????????????????????????????????????? | | ?????????????????????????????????????????????????? | +----------------------------------------------------+ Best States ------------- Heat Dissipation 39 Energy Generation 10 Energy Capacity 250 Matter Stores 300 Matter Capacity 300 Sight Range 18 Robot Scan Range 10 Terrain Scan Range 16 Terrain Scan Density 10 Resistance: KI 20 Resistance: TH 20 Resistance: EX 20 Resistance: EM 20 Resistance: I 20 Resistance: S 20 Resistance: P 20 Evasion (%) 62 Offensive Hacking 10 Item Schematics ----------------- None Robot Schematics ------------------ None Fabricated ------------ Nothing Alien Tech Used ----------------- None Achievements -------------- None Challenges ------------ None Game ------ Seed FieldGammaUnit Manual? 0 Play Time 00:24:51 Cumulative 14.6 hours Start 2020.10.19 @ 23:13:36 End 2020.10.19 @ 23:41:37 Sessions 1 Manual Loads 0 Difficulty Adventurer Special Mode None Game No. 17 Rogue 0 Adventurer 17 Explorer 0 Win Type - Total 0 Types 0/0/0/0/0/0/0/0/0 Lore% 3 Gallery% 19 Achievement% 15 Wizard Run 0 Options --------- ASCII 0 Keyboard 1 Movement Arrows Keybinds 0 Fullscreen 1 Font 24/Smallcaps Map View 76x50 Tactical HUD 1 Map Filters NONE Filters NONE Steam 1 RUN: 08258af9-0dd7-4569-ac0a-5f1a01dbcdc0